[Event "FIDE Women's Grand Swiss 2023"]
[Site "Villa Marina, Douglas, Isle of Man, Isle Of Man"]
[Date "2023.11.05"]
[Round "11.20"]
[White "Mkrtchyan, Mariam"]
[Black "Fataliyeva, Ulviyya"]
[Result "1/2-1/2"]
[TimeControl "40/90 + 30 + 30s/move"]
[WhiteFideId "13310828"]
[BlackFideId "13403052"]
[WhiteElo "2343"]
[BlackElo "2393"]

1. d4 {[%clk 01:30:57]} {[%emt 00:00:02]} Nf6 {[%clk 01:30:56]} {[%emt
00:00:05]} 2. c4 {[%clk 01:31:23]} {[%emt 00:00:04]} e6 {[%clk 01:31:22]}
{[%emt 00:00:03]} 3. Nf3 {[%clk 01:31:49]} {[%emt 00:00:04]} d5 {[%clk
01:31:49]} {[%emt 00:00:03]} 4. Nc3 {[%clk 01:32:11]} {[%emt 00:00:08]} Be7
{[%clk 01:32:14]} {[%emt 00:00:06]} 5. Bf4 {[%clk 01:32:31]} {[%emt 00:00:10]}
O-O {[%clk 01:32:37]} {[%emt 00:00:06]} 6. e3 {[%clk 01:32:58]} {[%emt
00:00:04]} Nbd7 {[%clk 01:33:02]} {[%emt 00:00:05]} 7. Be2 {[%clk 01:33:09]}
{[%emt 00:00:18]} dxc4 {[%clk 01:33:05]} {[%emt 00:00:28]} 8. O-O {[%clk
01:33:32]} {[%emt 00:00:07]} a6 {[%clk 01:33:24]} {[%emt 00:00:10]} 9. a4
{[%clk 01:32:59]} {[%emt 00:01:04]} c5 {[%clk 01:33:50]} {[%emt 00:00:04]} 10.
h3 {[%clk 01:32:00]} {[%emt 00:01:29]} Nd5 {[%clk 01:23:25]} {[%emt 00:10:55]}
11. Bxc4 {[%clk 01:29:38]} {[%emt 00:02:51]} Nxf4 {[%clk 01:21:57]} {[%emt
00:01:59]} 12. exf4 {[%clk 01:30:04]} {[%emt 00:00:04]} cxd4 {[%clk 01:21:46]}
{[%emt 00:00:42]} 13. Qxd4 {[%clk 01:26:00]} {[%emt 00:04:33]} Qc7 {[%clk
01:22:03]} {[%emt 00:00:13]} 14. Ba2 {[%clk 01:17:07]} {[%emt 00:09:24]} Bc5
{[%clk 01:14:42]} {[%emt 00:07:50]} 15. Qc4 {[%clk 01:15:35]} {[%emt 00:02:01]}
b5 {[%clk 01:14:38]} {[%emt 00:00:34]} 16. axb5 {[%clk 01:09:31]} {[%emt
00:06:35]} axb5 {[%clk 01:10:12]} {[%emt 00:04:56]} 17. Nxb5 {[%clk 01:06:05]}
{[%emt 00:03:56]} Qb8 {[%clk 01:09:28]} {[%emt 00:01:13]} 18. Qd3 {[%clk
01:04:01]} {[%emt 00:02:34]} Ba6 {[%clk 01:03:44]} {[%emt 00:06:14]} 19. Bc4
{[%clk 01:02:19]} {[%emt 00:02:13]} Qxf4 {[%clk 00:54:03]} {[%emt 00:10:10]} 20.
Bxe6 {[%clk 00:47:20]} {[%emt 00:15:30]} Ne5 {[%clk 00:40:14]} {[%emt
00:14:19]} 21. Nxe5 {[%clk 00:43:34]} {[%emt 00:04:15]} fxe6 {[%clk 00:39:56]}
{[%emt 00:00:48]} 22. Nd7 {[%clk 00:42:37]} {[%emt 00:01:28]} Bxb5 {[%clk
00:25:39]} {[%emt 00:14:47]} 23. Qxb5 {[%clk 00:42:37]} {[%emt 00:00:30]} Bxf2+
{[%clk 00:25:36]} {[%emt 00:00:33]} 24. Kh1 {[%clk 00:42:58]} {[%emt 00:00:09]}
Rxa1 {[%clk 00:25:00]} {[%emt 00:01:07]} 25. Rxa1 {[%clk 00:43:26]} Rc8 {[%clk
00:24:35]} {[%emt 00:00:54]} 26. Rf1 {[%clk 00:38:55]} {[%emt 00:05:01]} Rc1
{[%clk 00:10:19]} {[%emt 00:14:46]} 27. Nf6+ {[%clk 00:21:47]} {[%emt
00:17:38]} Kf7 {[%clk 00:06:26]} {[%emt 00:04:24]} 28. Ne4 {[%clk 00:20:54]}
{[%emt 00:01:23]} Rxf1+ {[%clk 00:05:20]} {[%emt 00:01:35]} 29. Qxf1 {[%clk
00:21:19]} {[%emt 00:00:05]} Be3 {[%clk 00:05:00]} {[%emt 00:00:50]} 30. Qxf4+
{[%clk 00:19:33]} {[%emt 00:02:17]} Bxf4 {[%clk 00:05:28]} {[%emt 00:00:02]} 31.
Kg1 {[%clk 00:19:55]} {[%emt 00:00:07]} e5 {[%clk 00:05:21]} {[%emt 00:00:37]}
32. Kf2 {[%clk 00:20:24]} {[%emt 00:00:02]} Ke6 {[%clk 00:05:36]} {[%emt
00:00:15]} 33. Ke2 {[%clk 00:20:51]} {[%emt 00:00:03]} Bc1 {[%clk 00:04:58]}
{[%emt 00:01:08]} 34. b3 {[%clk 00:21:04]} {[%emt 00:00:25]} h5 {[%clk
00:03:29]} {[%emt 00:01:51]} 35. Kd3 {[%clk 00:15:13]} {[%emt 00:06:21]} Ba3
{[%clk 00:03:49]} {[%emt 00:00:11]} 36. g4 {[%clk 00:07:36]} {[%emt 00:08:07]}
hxg4 {[%clk 00:04:10]} {[%emt 00:00:09]} 37. hxg4 {[%clk 00:08:02]} {[%emt
00:00:03]} Kd5 {[%clk 00:04:26]} {[%emt 00:00:13]} 38. Nc3+ {[%clk 00:06:57]}
{[%emt 00:01:36]} Kc5 {[%clk 00:04:25]} {[%emt 00:00:29]} 39. Ke4 {[%clk
00:07:25]} {[%emt 00:00:04]} Kb4 {[%clk 00:04:25]} {[%emt 00:00:29]} 40. Nd5+
{[%clk 00:04:12]} {[%emt 00:03:44]} Kxb3 {[%clk 00:04:54]} {[%emt 00:00:02]} 41.
Kxe5 {[%clk 00:04:31]} {[%emt 00:00:11]} Kc4 {[%clk 00:05:22]} {[%emt
00:00:02]} 42. Nf4 {[%clk 00:03:09]} {[%emt 00:01:51]} Bb2+ {[%clk 00:27:38]}
{[%emt 00:08:14]} 43. Kf5 {[%clk 00:33:27]} {[%emt 00:00:13]} Kd4 {[%clk
00:27:42]} {[%emt 00:00:24]} 44. g5 {[%clk 00:31:48]} {[%emt 00:02:10]} Ke3
{[%clk 00:26:15]} {[%emt 00:01:55]} 45. g6 {[%clk 00:31:00]} {[%emt 00:01:20]}
Kf3 {[%clk 00:26:30]} {[%emt 00:00:14]} 46. Nd3 {[%clk 00:22:22]} {[%emt
00:09:10]} Ba1 {[%clk 00:26:32]} {[%emt 00:00:27]} 47. Nc5 {[%clk 00:22:14]}
{[%emt 00:00:39]} Kg3 {[%clk 00:26:33]} {[%emt 00:00:28]} 48. Ne4+ {[%clk
00:22:23]} {[%emt 00:00:22]} Kh4 {[%clk 00:26:31]} {[%emt 00:00:30]} 49. Ke6
{[%clk 00:22:49]} {[%emt 00:00:06]} Kh5 {[%clk 00:26:34]} {[%emt 00:00:26]} 50.
Kf7 {[%clk 00:23:17]} {[%emt 00:00:03]} Be5 {[%clk 00:25:38]} {[%emt 00:01:24]}
51. Nc5 {[%clk 00:23:14]} {[%emt 00:00:35]} Kh6 {[%clk 00:25:45]} {[%emt
00:00:20]} 52. Nd3 {[%clk 00:23:09]} {[%emt 00:00:37]} Bc3 {[%clk 00:25:47]}
{[%emt 00:00:26]} 53. Nf2 {[%clk 00:23:19]} {[%emt 00:00:22]} Bd4 {[%clk
00:25:49]} {[%emt 00:00:26]} 54. Ne4 {[%clk 00:21:37]} {[%emt 00:02:15]} Be5
{[%clk 00:26:14]} {[%emt 00:00:05]} 55. Nc5 {[%clk 00:21:56]} {[%emt 00:00:11]}
Bd4 {[%clk 00:26:15]} {[%emt 00:00:26]} 56. Nb7 {[%clk 00:22:18]} {[%emt
00:00:11]} Be5 {[%clk 00:26:28]} {[%emt 00:00:15]} 57. Na5 {[%clk 00:21:57]}
{[%emt 00:00:52]} Bc3 {[%clk 00:26:15]} {[%emt 00:00:41]} 58. Nc4 {[%clk
00:21:34]} {[%emt 00:00:56]} Kg5 {[%clk 00:25:49]} {[%emt 00:00:55]} 59. Nd6
{[%clk 00:21:03]} {[%emt 00:01:01]} Be5 {[%clk 00:25:44]} {[%emt 00:00:33]} 60.
Ne4+ {[%clk 00:21:32]} {[%emt 00:00:04]} Kh6 {[%clk 00:25:24]} {[%emt
00:00:50]} 61. Nc5 {[%clk 00:21:50]} {[%emt 00:00:12]} Bd4 {[%clk 00:25:41]}
{[%emt 00:00:10]} 62. Ne6 {[%clk 00:19:38]} {[%emt 00:02:44]} 1/2-1/2

[Event "FIDE Women's Grand Swiss 2023"]
[Site "Villa Marina, Douglas, Isle of Man, Isle Of Man"]
[Date "2023.11.05"]
[Round "11.21"]
[White "Arakhamia-Grant, Ketevan"]
[Black "Matnadze Bujiashvili, Ann"]
[Result "1/2-1/2"]
[TimeControl "40/90 + 30 + 30s/move"]
[WhiteFideId "13600168"]
[BlackFideId "13601377"]
[WhiteElo "2297"]
[BlackElo "2400"]

1. e4 {[%clk 01:30:58]} {[%emt 00:00:02]} c6 {[%clk 01:30:53]} {[%emt
00:00:07]} 2. d4 {[%clk 01:31:14]} {[%emt 00:00:14]} d5 {[%clk 01:31:14]}
{[%emt 00:00:08]} 3. Nd2 {[%clk 01:31:33]} {[%emt 00:00:11]} dxe4 {[%clk
01:31:32]} {[%emt 00:00:13]} 4. Nxe4 {[%clk 01:31:58]} {[%emt 00:00:05]} Nf6
{[%clk 01:31:55]} {[%emt 00:00:06]} 5. Nxf6+ {[%clk 01:32:07]} {[%emt
00:00:21]} exf6 {[%clk 01:32:18]} {[%emt 00:00:07]} 6. c3 {[%clk 01:32:26]}
{[%emt 00:00:11]} Bd6 {[%clk 01:32:37]} {[%emt 00:00:11]} 7. Bd3 {[%clk
01:32:27]} {[%emt 00:00:29]} O-O {[%clk 01:32:26]} {[%emt 00:00:41]} 8. Qc2
{[%clk 01:32:29]} {[%emt 00:00:28]} g6 {[%clk 01:32:18]} {[%emt 00:00:38]} 9.
Ne2 {[%clk 01:31:45]} {[%emt 00:01:15]} f5 {[%clk 01:31:36]} {[%emt 00:01:12]}
10. h4 {[%clk 01:16:24]} {[%emt 00:15:52]} h5 {[%clk 01:24:59]} {[%emt
00:07:06]} 11. Bg5 {[%clk 01:16:01]} {[%emt 00:00:53]} Be7 {[%clk 01:23:36]}
{[%emt 00:01:53]} 12. Qd2 {[%clk 01:04:08]} {[%emt 00:12:23]} Re8 {[%clk
01:21:24]} {[%emt 00:02:42]} 13. O-O-O {[%clk 01:03:30]} {[%emt 00:01:08]} Be6
{[%clk 01:11:35]} {[%emt 00:10:19]} 14. Kb1 {[%clk 01:00:00]} {[%emt 00:03:59]}
Qa5 {[%clk 01:11:43]} {[%emt 00:00:23]} 15. c4 {[%clk 00:57:45]} {[%emt
00:02:45]} Qxd2 {[%clk 01:09:55]} {[%emt 00:02:18]} 16. Rxd2 {[%clk 00:57:26]}
{[%emt 00:00:49]} Na6 {[%clk 01:01:50]} {[%emt 00:08:35]} 17. a3 {[%clk
00:49:26]} {[%emt 00:08:30]} Rad8 {[%clk 01:01:18]} {[%emt 00:01:02]} 18. Bxe7
{[%clk 00:31:43]} {[%emt 00:18:14]} Rxe7 {[%clk 01:01:40]} {[%emt 00:00:07]} 19.
Kc2 {[%clk 00:31:50]} {[%emt 00:00:22]} Nc7 {[%clk 01:00:51]} {[%emt 00:01:19]}
20. Kc3 {[%clk 00:31:36]} {[%emt 00:00:44]} Bc8 {[%clk 00:59:31]} {[%emt
00:01:51]} 21. Bc2 {[%clk 00:23:10]} {[%emt 00:08:56]} b5 {[%clk 00:48:06]}
{[%emt 00:11:56]} 22. b3 {[%clk 00:23:32]} {[%emt 00:00:09]} a5 {[%clk
00:47:59]} {[%emt 00:00:36]} 23. Nf4 {[%clk 00:21:21]} {[%emt 00:02:41]} Red7
{[%clk 00:44:07]} {[%emt 00:04:22]} 24. Rhd1 {[%clk 00:15:40]} {[%emt
00:06:10]} Bb7 {[%clk 00:40:21]} {[%emt 00:04:16]} 25. g3 {[%clk 00:15:58]}
{[%emt 00:00:13]} Kf8 {[%clk 00:32:54]} {[%emt 00:07:57]} 26. Re1 {[%clk
00:16:02]} {[%emt 00:00:26]} b4+ {[%clk 00:25:30]} {[%emt 00:07:54]} 27. axb4
{[%clk 00:15:54]} {[%emt 00:00:39]} axb4+ {[%clk 00:25:58]} {[%emt 00:00:01]}
28. Kxb4 {[%clk 00:15:53]} {[%emt 00:00:31]} c5+ {[%clk 00:26:03]} {[%emt
00:00:24]} 29. Kc3 {[%clk 00:11:45]} {[%emt 00:04:38]} cxd4+ {[%clk 00:25:50]}
{[%emt 00:00:43]} 30. Kb2 {[%clk 00:12:02]} {[%emt 00:00:13]} Na6 {[%clk
00:23:16]} {[%emt 00:03:05]} 31. Re5 {[%clk 00:11:05]} {[%emt 00:01:26]} Bc6
{[%clk 00:19:32]} {[%emt 00:04:14]} 32. Nd3 {[%clk 00:09:23]} {[%emt 00:02:12]}
Be4 {[%clk 00:13:16]} {[%emt 00:06:46]} 33. Ra5 {[%clk 00:09:24]} {[%emt
00:00:30]} Rd6 {[%clk 00:12:33]} {[%emt 00:01:13]} 34. Ne5 {[%clk 00:03:36]}
{[%emt 00:06:18]} Re6 {[%clk 00:07:31]} {[%emt 00:05:32]} 35. f3 {[%clk
00:03:21]} {[%emt 00:00:45]} Bb7 {[%clk 00:04:02]} {[%emt 00:03:59]} 36. Rb5
{[%clk 00:03:25]} {[%emt 00:00:26]} Ba8 {[%clk 00:04:07]} {[%emt 00:00:25]} 37.
f4 {[%clk 00:01:10]} {[%emt 00:02:45]} Be4 {[%clk 00:03:30]} {[%emt 00:01:07]}
38. b4 {[%clk 00:01:23]} {[%emt 00:00:17]} Nc7 {[%clk 00:02:21]} {[%emt
00:01:38]} 39. Ra5 {[%clk 00:01:32]} {[%emt 00:00:22]} Rb6 {[%clk 00:01:54]}
{[%emt 00:00:56]} 40. b5 {[%clk 00:01:17]} {[%emt 00:00:46]} Ne6 {[%clk
00:01:34]} {[%emt 00:00:50]} 41. Ra7 {[%clk 00:28:37]} {[%emt 00:03:10]} Rb7
{[%clk 00:25:22]} {[%emt 00:06:42]} 42. Rxb7 {[%clk 00:25:38]} {[%emt
00:03:29]} Bxb7 {[%clk 00:25:49]} {[%emt 00:00:02]} 43. Kb3 {[%clk 00:17:21]}
{[%emt 00:08:47]} Nc5+ {[%clk 00:17:14]} {[%emt 00:09:06]} 44. Kb4 {[%clk
00:17:37]} {[%emt 00:00:15]} Ne4 {[%clk 00:17:41]} {[%emt 00:00:02]} 45. Rd3
{[%clk 00:17:19]} {[%emt 00:00:47]} Nf2 {[%clk 00:16:54]} {[%emt 00:01:17]} 46.
Ra3 {[%clk 00:16:30]} {[%emt 00:01:20]} Be4 {[%clk 00:15:05]} {[%emt 00:02:19]}
47. Nd3 {[%clk 00:15:02]} {[%emt 00:01:58]} Ng4 {[%clk 00:14:37]} {[%emt
00:00:58]} 48. b6 {[%clk 00:11:18]} {[%emt 00:04:15]} Ne3 {[%clk 00:15:00]}
{[%emt 00:00:06]} 49. Ba4 {[%clk 00:11:33]} {[%emt 00:00:15]} Ke7 {[%clk
00:13:36]} {[%emt 00:01:54]} 50. Kc5 {[%clk 00:01:55]} {[%emt 00:10:08]} Rc8+
{[%clk 00:08:55]} {[%emt 00:05:11]} 51. Kxd4 {[%clk 00:02:19]} {[%emt
00:00:06]} Nxc4 {[%clk 00:09:13]} {[%emt 00:00:11]} 52. Rc3 {[%clk 00:00:56]}
{[%emt 00:01:53]} Nxb6 {[%clk 00:05:13]} {[%emt 00:04:30]} 53. Rxc8 {[%clk
00:01:17]} {[%emt 00:00:10]} Nxc8 {[%clk 00:05:42]} {[%emt 00:00:01]} 54. Ne5
{[%clk 00:01:00]} {[%emt 00:00:47]} Nd6 {[%clk 00:05:38]} {[%emt 00:00:34]} 55.
Bb3 {[%clk 00:01:03]} {[%emt 00:00:27]} Bb7 {[%clk 00:05:43]} {[%emt 00:00:25]}
56. Ke3 {[%clk 00:00:52]} {[%emt 00:00:41]} f6 {[%clk 00:03:12]} {[%emt
00:03:01]} 57. Nxg6+ {[%clk 00:00:39]} {[%emt 00:00:43]} Ke8 {[%emt 00:00:37]}
58. Nh8 {[%clk 00:00:33]} Kf8 {[%clk 00:03:22]} {[%emt 00:00:48]} 59. Ng6+
{[%clk 00:00:56]} {[%emt 00:00:07]} Ke8 {[%clk 00:03:42]} {[%emt 00:00:10]} 60.
Nh8 {[%clk 00:01:13]} {[%emt 00:00:14]} Kf8 {[%clk 00:02:00]} {[%emt 00:02:11]}
61. Ng6+ {[%clk 00:01:38]} {[%emt 00:00:05]} Ke8 {[%clk 00:02:21]} {[%emt
00:00:10]} 62. Nh8 {[%clk 00:02:05]} {[%emt 00:00:03]} 1/2-1/2

[Event "FIDE Women's Grand Swiss 2023"]
[Site "Villa Marina, Douglas, Isle of Man, Isle Of Man"]
[Date "2023.11.05"]
[Round "11.22"]
[White "Sandu, Mihaela"]
[Black "Lee, Alice"]
[Result "0-1"]
[TimeControl "40/90 + 30 + 30s/move"]
[WhiteFideId "1204327"]
[BlackFideId "30941822"]
[WhiteElo "2298"]
[BlackElo "2388"]

1. e4 {[%clk 01:30:57]} {[%emt 00:00:02]} e5 {[%clk 01:30:57]} {[%emt
00:00:05]} 2. Nf3 {[%clk 01:31:23]} {[%emt 00:00:03]} Nf6 {[%clk 01:31:22]}
{[%emt 00:00:05]} 3. Nxe5 {[%clk 01:31:42]} {[%emt 00:00:12]} d6 {[%clk
01:31:48]} {[%emt 00:00:05]} 4. Nf3 {[%clk 01:32:07]} {[%emt 00:00:04]} Nxe4
{[%clk 01:32:13]} {[%emt 00:00:05]} 5. c4 {[%clk 01:31:39]} {[%emt 00:00:58]}
Nc6 {[%clk 01:32:37]} {[%emt 00:00:06]} 6. Nc3 {[%clk 01:28:48]} {[%emt
00:03:21]} Nxc3 {[%clk 01:33:01]} {[%emt 00:00:07]} 7. dxc3 {[%clk 01:29:15]}
{[%emt 00:00:02]} Be7 {[%clk 01:33:16]} {[%emt 00:00:15]} 8. Be2 {[%clk
01:26:48]} {[%emt 00:02:57]} O-O {[%clk 01:32:27]} {[%emt 00:01:19]} 9. O-O
{[%clk 01:25:56]} {[%emt 00:01:22]} Bg4 {[%clk 01:30:00]} {[%emt 00:02:57]} 10.
h3 {[%clk 01:21:25]} {[%emt 00:05:01]} Bh5 {[%clk 01:30:06]} {[%emt 00:00:24]}
11. Qd5 {[%clk 01:17:57]} {[%emt 00:03:58]} Bg6 {[%clk 01:28:08]} {[%emt
00:02:28]} 12. Be3 {[%clk 01:16:52]} {[%emt 00:01:35]} Re8 {[%clk 01:27:11]}
{[%emt 00:01:27]} 13. Qb5 {[%clk 01:04:15]} {[%emt 00:13:07]} Qc8 {[%clk
01:24:01]} {[%emt 00:03:39]} 14. Rfe1 {[%clk 00:59:52]} {[%emt 00:04:53]} a5
{[%clk 01:21:14]} {[%emt 00:03:18]} 15. a4 {[%clk 00:59:20]} {[%emt 00:01:02]}
Bf6 {[%clk 01:17:43]} {[%emt 00:04:01]} 16. Bf1 {[%clk 00:44:17]} {[%emt
00:15:33]} Nb4 {[%clk 01:16:53]} {[%emt 00:01:21]} 17. Bd2 {[%clk 00:32:32]}
{[%emt 00:12:14]} Rxe1 {[%clk 01:11:35]} {[%emt 00:05:48]} 18. Rxe1 {[%clk
00:32:47]} {[%emt 00:00:15]} c6 {[%clk 01:06:05]} {[%emt 00:06:00]} 19. Qb6
{[%clk 00:32:40]} {[%emt 00:00:37]} Nd3 {[%clk 01:03:48]} {[%emt 00:02:48]} 20.
Bxd3 {[%clk 00:29:27]} {[%emt 00:03:43]} Bxd3 {[%clk 01:04:14]} {[%emt
00:00:03]} 21. Bg5 {[%clk 00:28:24]} {[%emt 00:01:33]} Bxg5 {[%clk 01:03:07]}
{[%emt 00:01:37]} 22. Nxg5 {[%clk 00:28:34]} {[%emt 00:00:19]} Bxc4 {[%clk
00:41:58]} {[%emt 00:21:40]} 23. Qd4 {[%clk 00:25:53]} {[%emt 00:03:12]} Bd5
{[%clk 00:41:13]} {[%emt 00:01:15]} 24. c4 {[%clk 00:18:35]} {[%emt 00:07:47]}
h6 {[%clk 00:39:52]} {[%emt 00:01:51]} 25. cxd5 {[%clk 00:18:48]} {[%emt
00:00:17]} hxg5 {[%clk 00:40:20]} {[%emt 00:00:02]} 26. Re7 {[%clk 00:18:34]}
{[%emt 00:00:43]} cxd5 {[%clk 00:40:17]} {[%emt 00:00:34]} 27. Qe3 {[%clk
00:12:51]} {[%emt 00:06:13]} Kf8 {[%clk 00:38:46]} {[%emt 00:02:01]} 28. Qe2
{[%clk 00:10:06]} {[%emt 00:03:15]} Qc6 {[%clk 00:35:25]} {[%emt 00:03:51]} 29.
Re3 {[%clk 00:04:39]} {[%emt 00:05:56]} Re8 {[%clk 00:35:30]} {[%emt 00:00:26]}
30. Rxe8+ {[%clk 00:02:20]} {[%emt 00:02:48]} Qxe8 {[%clk 00:35:58]} {[%emt
00:00:03]} 31. Qd2 {[%clk 00:02:37]} {[%emt 00:00:13]} b6 {[%clk 00:34:00]}
{[%emt 00:02:28]} 32. Qc2 {[%clk 00:00:53]} {[%emt 00:02:14]} Qe1+ {[%clk
00:33:09]} {[%emt 00:01:21]} 33. Kh2 {[%clk 00:01:19]} {[%emt 00:00:03]} Qe5+
{[%clk 00:33:27]} {[%emt 00:00:12]} 34. g3 {[%clk 00:01:36]} {[%emt 00:00:14]}
g6 {[%clk 00:33:40]} {[%emt 00:00:17]} 35. Qc6 {[%clk 00:01:26]} {[%emt
00:00:40]} d4 {[%clk 00:32:51]} {[%emt 00:01:20]} 36. Qxb6 {[%clk 00:01:49]}
{[%emt 00:00:06]} d3 {[%clk 00:33:15]} {[%emt 00:00:06]} 37. Qb8+ {[%clk
00:01:10]} {[%emt 00:01:09]} Kg7 {[%clk 00:33:43]} {[%emt 00:00:02]} 38. Qb3
{[%clk 00:01:25]} {[%emt 00:00:14]} Qd4 {[%clk 00:33:10]} {[%emt 00:01:04]} 39.
Kg2 {[%clk 00:01:06]} {[%emt 00:00:49]} d2 {[%clk 00:32:48]} {[%emt 00:00:53]}
40. Qd1 {[%clk 00:01:25]} {[%emt 00:00:11]} Qxb2 {[%clk 00:32:58]} {[%emt
00:00:19]} 41. Qg4 {[%clk 00:29:34]} {[%emt 00:02:21]} Qa1 {[%clk 01:03:15]}
{[%emt 00:00:13]} 0-1